bitfinex/quotes_BTCUSD_20251104
["timestamp","ask_amount","ask_price","bid_price","bid_amount"]
[1762218033735,0.00059916,106690.0,106680.0,0.35244811]
[1762218038827,0.00059916,106690.0,106680.0,0.26288884]
[1762218039693,0.00059916,106690.0,106680.0,0.35244811]
[1762218040526,0.0002,106710.0,106700.0,0.2246237]
[1762218040730,0.0002,106710.0,106700.0,0.35414297]
[1762218041879,0.0002,106710.0,106700.0,0.2645837]
[1762218043202,0.18762385,106710.0,106700.0,0.2645837]
[1762218043404,0.56787573,106710.0,106700.0,0.22840142]
[1762218043550,0.56787573,106710.0,106700.0,0.22740142]
[1762218044264,0.18762385,106710.0,106700.0,0.03996]
[1762218044991,0.56787573,106710.0,106700.0,0.03996]
[1762218045200,0.56787573,106710.0,106700.0,0.22740142]
[1762218045784,0.0002,106710.0,106700.0,0.22740142]
[1762218045987,0.0002,106710.0,106700.0,0.31696069]
[1762218046194,0.18808726,106710.0,106700.0,0.22740142]
[1762218047414,0.56833914,106710.0,106700.0,0.03996]
[1762218048139,0.00066341,106710.0,106700.0,0.38532711]
[1762218048340,0.00066341,106710.0,106700.0,0.36658297]
[1762218048545,0.00066341,106710.0,106700.0,0.36558297]
[1762218048724,0.00066341,106710.0,106700.0,0.36658297]
[1762218052838,0.73705151,106730.0,106720.0,0.18740629]
[1762218053224,3.92458475,106730.0,106720.0,0.20283629]
[1762218053429,3.92458475,106730.0,106720.0,0.22610629]
[1762218053430,3.93335153,106730.0,106720.0,0.22610629]
[1762218054213,3.93335153,106730.0,106720.0,0.01543]
[1762218055012,0.18740629,106720.0,106710.0,0.55069378]
[1762218055266,0.18740629,106720.0,106700.0,0.5993337]
[1762218055267,3.0,106710.0,106700.0,0.5993337]
[1762218055617,3.0,106710.0,106700.0,0.6147637]
[1762218055618,3.18742385,106710.0,106700.0,0.6147637]
[1762218055855,3.18742385,106710.0,106700.0,0.39114]
[1762218056082,3.56767573,106710.0,106700.0,0.57858142]
[1762218056302,3.56767573,106710.0,106700.0,0.39114]
[1762218056528,3.56767573,106710.0,106700.0,0.57858142]
[1762218057223,3.0,106710.0,106700.0,0.57858142]
[1762218057687,0.18742385,106710.0,106700.0,0.57858142]
[1762218058144,0.56765821,106720.0,106700.0,0.23858142]
[1762218058410,3.56765821,106720.0,106710.0,0.18742385]
[1762218058638,3.0,106710.0,106700.0,0.23858142]
[1762218058869,0.18742385,106710.0,106700.0,0.22315142]
[1762218059114,0.18742385,106710.0,106700.0,0.23858142]
[1762218059555,0.56767573,106710.0,106700.0,0.05114]
[1762218059779,0.56767573,106710.0,106700.0,0.23858142]
[1762218060236,0.56767573,106710.0,106690.0,0.19995667]
[1762218060237,3.0,106700.0,106690.0,0.19995667]
[1762218060693,3.0,106700.0,106690.0,0.21638667]
[1762218061281,3.0,106700.0,106690.0,0.23965667]
[1762218062529,3.0,106700.0,106690.0,0.27583895]
[1762218062756,3.18742385,106710.0,106700.0,0.18744142]
[1762218062950,3.18742385,106710.0,106700.0,0.21071142]
[1762218063233,3.18742385,106710.0,106700.0,0.22614142]
[1762218063649,3.56767573,106710.0,106700.0,0.01543]
[1762218064854,0.18744142,106700.0,106690.0,0.22422642]
[1762218065052,0.5676933,106700.0,106690.0,0.22422667]
[1762218065257,0.5676933,106700.0,106690.0,0.23965667]
[1762218065660,3.18744142,106700.0,106690.0,0.23965667]
[1762218065860,3.0,106700.0,106690.0,0.23965667]
[1762218066288,3.0,106710.0,106700.0,0.18744142]
[1762218066491,3.0,106710.0,106700.0,0.31570069]
[1762218066733,3.0,106710.0,106700.0,0.31670069]
[1762218067555,3.0,106710.0,106700.0,0.35288297]
[1762218068715,0.00023165,106720.0,106710.0,0.22360613]
[1762218068928,0.00023165,106720.0,106710.0,0.27574613]
[1762218070960,1.65e-06,106720.0,106710.0,0.27574613]
[1762218071113,0.00014451,106730.0,106720.0,0.18840629]
[1762218071326,0.00014451,106730.0,106720.0,0.31666556]
[1762218072423,0.00014451,106730.0,106720.0,0.35284784]
[1762218072631,0.0002,106750.0,106740.0,0.18837118]
[1762218072837,0.00068161,106750.0,106740.0,0.31663045]
[1762218074476,0.00068161,106750.0,106740.0,0.31563045]
[1762218074665,0.00068161,106750.0,106740.0,0.31663045]
[1762218075256,0.18803523,106750.0,106740.0,0.35281273]
[1762218075538,0.00068161,106750.0,106740.0,0.35281273]
[1762218078393,0.00068161,106750.0,106740.0,0.07588228]
[1762218078626,3.57837711,106750.0,106740.0,0.01543]
[1762218078839,0.18737118,106740.0,106730.0,0.02441]
[1762218079060,3.0,106740.0,106730.0,0.21179873]
[1762218079243,0.00046321,106740.0,106730.0,0.26305101]
[1762218079737,3.56808627,106740.0,106730.0,0.07566228]
[1762218080182,3.58330627,106740.0,106730.0,0.01507]
[1762218080388,3.56808627,106740.0,106730.0,0.01507]
[1762218080593,3.56808627,106740.0,106730.0,0.03848]
[1762218081169,3.18783439,106740.0,106730.0,0.22586873]
[1762218081634,0.00046321,106740.0,106730.0,0.22586873]
[1762218081818,0.00046321,106740.0,106730.0,0.26305101]
[1762218089213,3.38025188,106760.0,106750.0,0.18735362]
[1762218089429,3.56759218,106760.0,106750.0,0.21455362]
[1762218089642,3.56759218,106760.0,106750.0,0.23830362]
[1762218089861,3.58401218,106760.0,106750.0,0.01216]
[1762218090067,3.18735362,106750.0,106740.0,0.01216]
[1762218090303,3.5676055,106750.0,106740.0,0.21457118]
[1762218090582,3.5676055,106750.0,106740.0,0.23832118]
[1762218091815,3.38388425,106750.0,106740.0,0.0312]
[1762218092028,3.5676055,106750.0,106740.0,0.0312]
[1762218092353,3.5676055,106750.0,106740.0,0.21857118]
[1762218092680,3.38025188,106750.0,106740.0,0.24232118]
[1762218092854,3.0,106750.0,106740.0,0.24232118]
[1762218093054,3.38025188,106750.0,106740.0,0.24232118]
[1762218093418,3.0,106750.0,106740.0,0.24232118]
[1762218093620,3.18735362,106750.0,106740.0,0.24232118]
[1762218093821,3.0,106750.0,106740.0,0.24332118]
[1762218094041,3.0,106750.0,106740.0,0.33288045]
[1762218094380,3.92779878,106770.0,106760.0,0.18733608]
[1762218094586,0.18733608,106760.0,106750.0,0.22612776]
[1762218094788,3.18779916,106760.0,106750.0,0.22612776]
[1762218095235,3.00046308,106760.0,106750.0,0.22612776]
[1762218095446,3.00046308,106760.0,106750.0,0.22712776]
[1762218095642,0.00046308,106760.0,106750.0,0.26331004]
[1762218097039,0.00046308,106760.0,106750.0,0.26631004]
[1762218097258,0.18779916,106760.0,106750.0,0.26631004]
[1762218097466,3.69837216,106760.0,106750.0,0.01604]
[1762218097679,3.69837216,106760.0,106750.0,0.23114362]
[1762218097886,3.70714199,106760.0,106750.0,0.23114362]
[1762218098296,0.00923291,106760.0,106750.0,0.23114362]
[1762218099554,0.19656899,106760.0,106750.0,0.23114362]
[1762218099759,0.00923291,106760.0,106750.0,0.23114362]
[1762218101418,0.00923291,106760.0,106750.0,0.2673259]
[1762218103909,0.00046308,106760.0,106750.0,0.2673259]
[1762218105782,0.19658181,106760.0,106750.0,0.07997228]
[1762218105992,0.19658181,106760.0,106750.0,0.2673259]
[1762218105993,0.00924573,106760.0,106750.0,0.2673259]
[1762218108155,0.00046308,106760.0,106750.0,0.2673259]
[1762218109337,0.18779916,106760.0,106750.0,0.2673259]
[1762218109794,0.00046308,106760.0,106750.0,0.2673259]
[1762218111066,0.00046308,106760.0,106750.0,0.2788359]
[1762218114158,0.18779916,106760.0,106750.0,0.09148228]
[1762218114345,0.69837216,106760.0,106750.0,0.0543]
[1762218114556,0.00046308,106760.0,106750.0,0.24165362]
[1762218116960,0.18779916,106760.0,106750.0,0.24165362]
[1762218117369,0.00046308,106760.0,106750.0,0.24165362]
[1762218118438,0.18779916,106760.0,106750.0,0.24165362]
[1762218118646,3.18779916,106760.0,106750.0,0.0543]
[1762218119130,3.18779916,106760.0,106750.0,0.24165362]
[1762218120463,3.18779916,106760.0,106750.0,0.004]
[1762218120464,4.18357822,106760.0,106750.0,0.004]
[1762218120691,4.19336108,106760.0,106750.0,0.004]
[1762218121132,4.09878502,106760.0,106750.0,0.004]
[1762218121558,3.18737118,106740.0,106730.0,0.23170706]
[1762218122002,3.18737118,106740.0,106730.0,0.24677706]
[1762218122234,3.0,106740.0,106730.0,0.24677706]
[1762218122865,0.18737118,106740.0,106730.0,0.25077816]
[1762218123070,0.53427442,106750.0,106730.0,0.25077816]
[1762218123300,4.05362993,106750.0,106740.0,0.21395118]
[1762218123712,4.05362913,106750.0,106740.0,0.21395118]
[1762218123912,3.35570251,106750.0,106740.0,0.23674118]
[1762218124325,3.34692,106750.0,106740.0,0.23674118]
[1762218124531,3.00692,106750.0,106740.0,0.23674118]
[1762218124754,3.19427362,106750.0,106740.0,0.23974118]
[1762218125148,3.21032362,106750.0,106740.0,0.20188118]
[1762218125559,3.19427362,106750.0,106740.0,0.21695118]
[1762218125798,3.19427362,106750.0,106740.0,0.02958]
[1762218125974,3.19427362,106750.0,106740.0,0.21695118]
[1762218126387,3.0,106750.0,106740.0,0.23974118]
[1762218126582,3.0,106760.0,106750.0,0.18735362]
[1762218126762,3.53611279,106760.0,106750.0,0.23672362]
[1762218126973,3.19611279,106760.0,106750.0,0.23672362]
[1762218127183,3.18779916,106760.0,106750.0,0.02658]
[1762218127386,3.70714843,106760.0,106750.0,0.02658]
[1762218127586,3.72319843,106760.0,106750.0,0.01151]
[1762218127833,3.72319843,106760.0,106740.0,0.0353]
[1762218127834,3.18735362,106750.0,106740.0,0.0343]
[1762218127966,3.18735362,106750.0,106740.0,0.22167118]
[1762218128172,3.18735362,106750.0,106740.0,0.23674118]
[1762218128418,3.0,106750.0,106740.0,0.23674118]
[1762218128589,3.0,106750.0,106740.0,0.32630045]
[1762218128800,3.0,106760.0,106750.0,0.18735362]
[1762218128979,0.18735362,106750.0,106740.0,0.0343]
[1762218129338,3.18735362,106750.0,106740.0,0.22467082]
[1762218129459,3.18735362,106750.0,106740.0,0.23974082]
[1762218129864,3.0,106750.0,106740.0,0.23974082]
[1762218130267,3.18735362,106750.0,106740.0,0.23974082]
[1762218130673,3.18735362,106750.0,106740.0,0.23674082]
[1762218130931,3.69792662,106750.0,106740.0,0.05337]
[1762218131149,4.08538662,106750.0,106740.0,0.004]
[1762218131559,3.57481362,106750.0,106740.0,0.004]
[1762218131761,4.08538662,106750.0,106740.0,0.004]
[1762218132194,3.18737118,106740.0,106730.0,0.22233792]
[1762218132610,3.18737118,106740.0,106730.0,0.02723]
[1762218132833,3.69794418,106740.0,106730.0,0.02723]
[1762218133055,3.71399418,106740.0,106730.0,0.01216]
[1762218133264,3.20342118,106740.0,106730.0,0.01216]
[1762218133570,3.18737118,106740.0,106730.0,0.02723]
[1762218133790,0.18738873,106730.0,106720.0,0.03515737]
[1762218133997,3.0,106730.0,106720.0,0.22256366]
[1762218134213,3.0,106730.0,106720.0,0.23763366]
[1762218134429,3.11351258,106740.0,106730.0,0.18738873]
[1762218134643,3.34,106740.0,106730.0,0.22756873]
[1762218134849,0.34,106740.0,106730.0,0.22756873]
[1762218135054,0.34,106740.0,106730.0,0.22805034]
[1762218135661,3.34715156,106750.0,106740.0,0.18737118]
[1762218135872,3.34715156,106750.0,106740.0,0.22755118]
[1762218136085,3.34023156,106750.0,106740.0,0.22755118]
[1762218136491,3.55109518,106750.0,106740.0,0.18737118]
[1762218136695,0.55109518,106750.0,106730.0,0.21668034]
[1762218136898,3.0,106740.0,106730.0,0.21368034]
[1762218137104,3.18737118,106740.0,106730.0,0.21368034]
[1762218137293,0.53450518,106750.0,106730.0,0.22905034]
[1762218137492,4.04507818,106750.0,106740.0,0.18737118]
[1762218138532,3.53450518,106750.0,106740.0,0.18737118]
[1762218138736,3.34715156,106750.0,106740.0,0.20274118]
[1762218139023,3.34715156,106750.0,106740.0,0.22755118]
[1762218139024,3.34023156,106750.0,106740.0,0.22755118]
[1762218139245,0.00023156,106750.0,106740.0,0.35329273]
[1762218139447,0.00023156,106750.0,106740.0,0.35429273]
[1762218140225,0.00023156,106750.0,106740.0,0.35529273]
[1762218140427,0.00023156,106750.0,106740.0,0.35429273]
[1762218140794,0.00023156,106750.0,106740.0,0.35829273]
[1762218142380,0.00023156,106750.0,106740.0,0.26873346]
[1762218143650,0.00023156,106750.0,106740.0,0.23255118]
[1762218144167,0.00023156,106750.0,106740.0,0.35829273]
[1762218147999,0.00023156,106750.0,106740.0,0.37047273]
[1762218157197,0.00023156,106750.0,106740.0,0.28091346]
[1762218157398,0.56747313,106750.0,106740.0,0.28091346]
[1762218157618,0.38011951,106750.0,106740.0,0.28091346]
[1762218157810,0.00023156,106750.0,106740.0,0.28091346]
[1762218158278,0.18758518,106750.0,106740.0,0.28091346]
[1762218158646,3.56747313,106750.0,106740.0,0.24373118]
[1762218158847,3.57467313,106750.0,106740.0,0.21892118]
[1762218159072,3.57467313,106750.0,106740.0,0.24363118]
[1762218159431,3.57467313,106750.0,106740.0,0.03155]
[1762218159660,3.57467313,106750.0,106740.0,0.19955118]
[1762218159835,3.57467313,106750.0,106740.0,0.24366118]
[1762218160051,3.38011951,106750.0,106740.0,0.24366118]
[1762218160258,3.00023156,106750.0,106740.0,0.24366118]
[1762218161063,3.00023156,106750.0,106740.0,0.24466118]
[1762218161387,3.00023156,106750.0,106740.0,0.33422045]
[1762218161558,0.00023156,106750.0,106740.0,0.37040273]
[1762218171741,0.56747313,106750.0,106740.0,0.24466118]
[1762218171880,3.56747313,106750.0,106740.0,0.24466118]
[1762218172084,3.57467313,106750.0,106740.0,0.03158]
[1762218172285,3.58980313,106750.0,106740.0,0.01518]
[1762218172490,3.58980313,106750.0,106740.0,0.003]
[1762218172712,3.95400313,106750.0,106740.0,0.003]
[1762218173117,3.93859329,106750.0,106740.0,0.003]
[1762218173686,0.18737118,106740.0,106730.0,0.03694161]
[1762218173888,3.56725913,106740.0,106730.0,0.03694161]
[1762218174090,3.56725913,106740.0,106730.0,0.24047034]
[1762218175716,3.56725913,106740.0,106730.0,0.24347034]
[1762218175932,3.56725913,106740.0,106730.0,0.05608161]
[1762218176137,3.57734913,106740.0,106730.0,0.05608161]
[1762218176519,3.37251015,106740.0,106730.0,0.05608161]
[1762218176790,3.57734913,106740.0,106730.0,0.05608161]
[1762218176993,3.57734913,106740.0,106730.0,0.01566161]
[1762218176994,3.59247913,106740.0,106730.0,0.01566161]
[1762218177415,3.57734913,106740.0,106730.0,0.03180161]
[1762218177618,3.56725913,106740.0,106730.0,0.24347034]
[1762218177822,3.0,106740.0,106730.0,0.24347034]
[1762218178023,3.0,106740.0,106730.0,0.24447034]
[1762218178458,3.0,106740.0,106730.0,0.28065262]
[1762218179579,3.56725913,106740.0,106730.0,0.03180161]
[1762218179803,3.56725913,106740.0,106730.0,0.21919034]
[1762218180048,3.56725913,106740.0,106730.0,0.05608161]
[1762218180971,3.56725913,106740.0,106730.0,0.03180161]
[1762218181451,3.56725913,106740.0,106730.0,0.24347034]
[1762218182128,3.56725913,106740.0,106730.0,0.03180161]
[1762218182344,3.18737118,106740.0,106730.0,0.21919034]
[1762218182562,3.56725913,106740.0,106730.0,0.05608161]
[1762218183942,3.58238913,106740.0,106730.0,0.01566161]
[1762218184363,3.56725913,106740.0,106730.0,0.03180161]
[1762218184572,3.56725913,106740.0,106730.0,0.05608161]
[1762218184782,3.56725913,106740.0,106730.0,0.24347034]
[1762218184981,3.56725913,106740.0,106730.0,0.05608161]
[1762218186266,3.56725913,106740.0,106730.0,0.24347034]
[1762218186672,3.56725913,106740.0,106730.0,0.05608161]
[1762218187300,0.00023156,106750.0,106740.0,0.18737118]
[1762218187506,3.00023156,106750.0,106740.0,0.23910118]
[1762218187716,3.00023156,106750.0,106740.0,0.32866045]
[1762218187717,0.00023156,106750.0,106740.0,0.32866045]
[1762218187928,0.00023156,106750.0,106740.0,0.36584273]
[1762218188751,0.00023156,106750.0,106740.0,0.36684273]
[1762218188956,0.00023156,106750.0,106740.0,0.36584273]
[1762218189370,0.00023156,106750.0,106740.0,0.36984273]
[1762218192020,0.22524855,106760.0,106750.0,0.20349362]
[1762218192252,3.0,106760.0,106750.0,0.2639559]
[1762218192467,3.00023153,106760.0,106750.0,0.2639559]
[1762218192686,0.00023153,106760.0,106750.0,0.2639559]
[1762218194399,0.00023153,106760.0,106750.0,0.2659559]
[1762218195808,0.18756761,106760.0,106750.0,0.2659559]
[1762218196017,0.18756761,106760.0,106750.0,0.2783959]
[1762218196236,0.00023153,106760.0,106750.0,0.2783959]
[1762218196447,0.00023153,106760.0,106750.0,0.36795517]
[1762218196686,0.00023153,106760.0,106750.0,0.36895517]
[1762218196895,0.00023153,106760.0,106750.0,0.36795517]
[1762218197354,0.18756761,106760.0,106750.0,0.2783959]
[1762218197786,3.56745556,106760.0,106750.0,0.09104228]
[1762218198290,3.58344556,106760.0,106750.0,0.01444]
[1762218198506,3.60614556,106760.0,106750.0,0.002]
[1762218199150,3.18735362,106750.0,106740.0,0.04479855]
[1762218199405,3.18735362,106750.0,106740.0,0.03543]
[1762218199406,3.56724157,106750.0,106740.0,0.03543]
[1762218199626,3.56724157,106750.0,106740.0,0.23900118]
[1762218200055,3.56724157,106750.0,106740.0,0.05163]
[1762218200277,3.58323157,106750.0,106740.0,0.01131]
[1762218200494,3.58323157,106750.0,106740.0,0.19868118]
[1762218200740,3.56724157,106750.0,106740.0,0.21488118]
[1762218202286,3.0,106750.0,106740.0,0.23982934]
[1762218202487,3.18735362,106750.0,106740.0,0.23982934]
[1762218202632,3.0,106750.0,106740.0,0.23982934]
[1762218202828,3.18735362,106750.0,106740.0,0.23982934]
[1762218203839,3.18735362,106750.0,106740.0,0.02833816]
[1762218204067,3.58323157,106750.0,106740.0,0.21570934]
[1762218204356,3.56724157,106750.0,106740.0,0.23982934]
[1762218204875,3.58323157,106750.0,106740.0,0.02833816]
[1762218205362,3.58323157,106750.0,106740.0,0.01213816]
[1762218205614,3.60593157,106750.0,106740.0,0.002]
[1762218205836,3.35742646,106750.0,106740.0,0.002]
[1762218206071,3.72012646,106750.0,106740.0,0.002]
[1762218207262,3.30156607,106740.0,106730.0,0.00133888]
[1762218207487,3.72852402,106740.0,106730.0,0.00133888]
[1762218208563,3.73052402,106740.0,106730.0,0.00133888]
[1762218209654,3.72952402,106740.0,106730.0,0.00133888]
[1762218209859,3.73052402,106740.0,106730.0,0.00133888]
[1762218210283,3.82510008,106740.0,106730.0,0.00133888]
[1762218210509,3.84793465,106740.0,106730.0,0.00133888]
[1762218210793,3.83386704,106740.0,106730.0,0.00133888]
[1762218211525,3.83286704,106740.0,106730.0,0.00133888]
[1762218211779,3.73829098,106740.0,106730.0,0.00133888]
[1762218212002,3.74129098,106740.0,106730.0,0.00133888]
[1762218213406,3.73829098,106740.0,106730.0,0.00133888]
[1762218213624,3.73929098,106740.0,106730.0,0.00133888]
[1762218214269,3.73829098,106740.0,106730.0,0.00133888]
[1762218214495,3.73929098,106740.0,106730.0,0.00133888]
[1762218214759,3.73927712,106740.0,106730.0,0.00133888]
[1762218216357,3.86165769,106740.0,106730.0,0.00133888]
[1762218216792,3.31094607,106740.0,106730.0,0.02957888]
[1762218217269,3.95542375,106740.0,106730.0,0.00133888]
[1762218217486,3.97502023,106740.0,106730.0,0.00133888]
[1762218217722,4.00442197,106740.0,106730.0,0.00233888]
[1762218217962,3.99357498,106740.0,106730.0,0.00233888]
[1762218218175,3.89899892,106740.0,106730.0,0.00133888]
[1762218219115,3.89999892,106740.0,106730.0,0.00133888]
[1762218220390,3.98955819,106740.0,106730.0,0.00133888]
[1762218220593,4.08413425,106740.0,106730.0,0.00133888]
[1762218222650,3.98955819,106740.0,106730.0,0.00133888]
[1762218228061,3.97386005,106740.0,106730.0,0.00133888]
[1762218230258,3.97486005,106740.0,106730.0,0.00133888]
[1762218231525,3.98735573,106740.0,106730.0,0.00133888]
[1762218231726,3.97486005,106740.0,106730.0,0.00133888]
[1762218231943,4.06943611,106740.0,106730.0,0.00133888]
[1762218233247,3.97486005,106740.0,106730.0,0.00133888]
[1762218238113,4.00303283,106740.0,106730.0,0.00133888]
[1762218239008,0.18744142,106700.0,106690.0,0.03506]
[1762218239259,2.96165388,106690.0,106680.0,0.01244]
[1762218239486,0.18749414,106670.0,106660.0,0.2507738]
[1762218239722,3.70707576,106670.0,106660.0,0.01261451]
[1762218239947,3.72043645,106670.0,106660.0,0.02830451]
[1762218240170,3.72043645,106670.0,106660.0,0.23843622]
[1762218240388,3.02192069,106670.0,106660.0,0.23843622]
[1762218240609,0.01336069,106670.0,106660.0,0.32799549]
[1762218240847,0.20085483,106670.0,106660.0,0.32899549]
[1762218241099,3.18749414,106670.0,106660.0,0.05192451]
[1762218241340,3.18749414,106670.0,106660.0,0.00014451]
[1762218241341,3.71518576,106670.0,106660.0,0.00014451]
[1762218241567,3.71518576,106670.0,106660.0,0.20334622]
[1762218241792,3.71518576,106670.0,106660.0,0.01583451]
[1762218242010,3.71518576,106670.0,106660.0,0.00014451]
[1762218242231,3.71518576,106670.0,106660.0,0.00314451]
[1762218242479,4.09186066,106670.0,106660.0,0.00014451]
[1762218242692,4.09186066,106670.0,106660.0,0.00214451]
[1762218242900,4.18643672,106670.0,106660.0,0.00214451]
[1762218243614,4.18643672,106670.0,106660.0,0.00014451]
[1762218243829,4.18643672,106670.0,106660.0,0.00114451]
[1762218244255,4.06853066,106670.0,106660.0,0.18865622]
[1762218244475,3.3533449,106670.0,106660.0,0.20434622]
[1762218244697,3.3533449,106670.0,106660.0,0.22696622]
[1762218245173,3.0133449,106670.0,106660.0,0.22858872]
[1762218245395,0.0133449,106670.0,106660.0,0.22858872]
[1762218245852,3.0,106670.0,106660.0,0.22858872]
[1762218246987,3.0,106670.0,106660.0,0.31814799]
[1762218247192,3.0,106670.0,106660.0,0.31914799]
[1762218247418,3.0,106670.0,106660.0,0.31814799]
[1762218248503,0.01323397,106670.0,106660.0,0.31914799]
[1762218248754,0.01323397,106670.0,106660.0,0.31814799]
[1762218248962,3.34,106680.0,106670.0,0.18749414]
[1762218249171,3.34,106680.0,106670.0,0.21565414]
[1762218249172,3.52747656,106680.0,106670.0,0.21565414]
[1762218249406,3.52747656,106680.0,106670.0,0.02955058]
[1762218249868,3.52747656,106680.0,106670.0,0.21704472]
[1762218250129,3.34,106680.0,106670.0,0.21704472]
[1762218250583,3.34,106680.0,106670.0,0.23966472]
[1762218251014,3.52747656,106680.0,106670.0,0.23966472]
[1762218251456,3.52747656,106680.0,106670.0,0.02955058]
[1762218251930,4.05516818,106680.0,106670.0,0.01386058]
[1762218252147,4.05516818,106680.0,106670.0,0.00139058]
[1762218252355,4.06828058,106680.0,106670.0,0.00139058]
[1762218253061,4.06828058,106680.0,106670.0,0.00239058]
[1762218253496,4.09161058,106680.0,106670.0,0.00239058]
[1762218253712,4.18618664,106680.0,106670.0,0.00239058]
[1762218253925,4.20189642,106680.0,106670.0,0.00239058]
[1762218254368,4.81434166,106680.0,106670.0,0.00239058]
[1762218254586,4.27948547,106680.0,106670.0,0.00239058]
[1762218254813,4.27948547,106680.0,106670.0,0.00139058]
[1762218255896,4.21065141,106680.0,106670.0,0.00139058]
[1762218257457,4.28126451,106680.0,106670.0,0.00139058]
[1762218257891,4.79228613,106680.0,106670.0,0.00139058]
[1762218258312,4.28126451,106680.0,106670.0,0.00139058]
[1762218258743,1.03951576,106670.0,106660.0,0.00014451]
[1762218258967,4.0470873,106670.0,106660.0,0.00014451]
[1762218259181,4.25730144,106670.0,106660.0,0.00014451]
[1762218259807,4.27017144,106670.0,106660.0,0.00014451]
[1762218260774,4.27117144,106670.0,106660.0,0.00014451]
[1762218264183,4.27117144,106670.0,106660.0,0.00037636]
[1762218266155,4.27973144,106670.0,106660.0,0.00037636]
[1762218268789,4.29444461,106670.0,106660.0,0.00037636]
[1762218269628,4.29446276,106670.0,106660.0,0.00037636]
[1762218271993,3.5285293,106650.0,106640.0,0.0004]
[1762218272263,4.16753012,106650.0,106640.0,0.00053563]
[1762218272440,4.19189012,106650.0,106640.0,0.00053563]
[1762218272811,4.09631406,106650.0,106640.0,0.00053563]
[1762218273011,4.09731406,106650.0,106640.0,0.00053563]
[1762218273689,3.5521593,106650.0,106640.0,0.02827563]
[1762218273869,3.5521593,106650.0,106640.0,0.21682251]
[1762218274077,3.5521593,106650.0,106640.0,0.20114251]
[1762218274248,3.5765193,106650.0,106640.0,0.18908251]
[1762218274461,3.5765193,106650.0,106640.0,0.00153563]
[1762218274868,3.5360893,106650.0,106640.0,0.24119251]
[1762218275199,3.5360893,106650.0,106640.0,0.21682251]
[1762218275458,3.5521593,106650.0,106640.0,0.20114251]
[1762218275804,3.5521593,106650.0,106640.0,0.01359563]
[1762218276007,3.5521593,106650.0,106640.0,0.20114251]
[1762218277190,3.5360893,106650.0,106640.0,0.21682251]
[1762218277402,3.5521593,106650.0,106640.0,0.01359563]
[1762218277614,3.5521593,106650.0,106640.0,0.01405944]
[1762218277856,4.08754092,106650.0,106640.0,0.00199944]
[1762218278274,4.09631595,106650.0,106640.0,0.00199944]
[1762218278474,3.95721854,106650.0,106640.0,0.00199944]
[1762218279016,3.93285854,106650.0,106640.0,0.18954632]
[1762218279201,3.95721854,106650.0,106640.0,0.00199944]
[1762218279670,3.96699591,106650.0,106640.0,0.00199944]
[1762218279885,3.96599591,106650.0,106640.0,0.00199944]
[1762218281195,0.18756447,106630.0,106620.0,0.0004]
[1762218281453,3.60267876,106630.0,106620.0,0.00088217]
[1762218281693,4.05282977,106630.0,106620.0,0.00088217]
[1762218281911,4.06161482,106630.0,106620.0,0.00088217]
[1762218283608,4.05282977,106630.0,106620.0,0.00088217]
[1762218284475,3.95825371,106630.0,106620.0,0.00088217]
[1762218284696,3.96703745,106630.0,106620.0,0.00088217]
[1762218285354,3.96603745,106630.0,106620.0,0.00088217]
[1762218287140,3.77847298,106630.0,106620.0,0.00134611]
[1762218287351,3.96603745,106630.0,106620.0,0.00134611]
[1762218287818,3.96603217,106630.0,106620.0,0.00134611]
[1762218288271,4.05813603,106630.0,106620.0,0.00134611]
[1762218288488,4.05913603,106630.0,106620.0,0.00134611]
[1762218289548,4.05035757,106630.0,106620.0,0.00134611]
[1762218290179,4.06026213,106630.0,106620.0,0.00134611]
[1762218290397,4.08846388,106630.0,106620.0,0.00134611]
[1762218290604,4.07855932,106630.0,106620.0,0.00134611]
[1762218291247,4.08846388,106630.0,106620.0,0.00134611]
[1762218291465,4.10239389,106630.0,106620.0,0.00134611]
[1762218291712,4.11239388,106630.0,106620.0,0.00134611]
[1762218291933,0.18763486,106590.0,106580.0,0.01246]
[1762218292144,0.5683341,106590.0,106580.0,0.22309703]
[1762218292354,0.5683341,106590.0,106580.0,0.23824703]
[1762218292791,0.58080751,106590.0,106580.0,0.23824703]
[1762218293258,0.58080751,106590.0,106580.0,0.24024703]
[1762218293463,0.01247341,106590.0,106580.0,0.24024703]
[1762218293885,0.59208985,106610.0,106580.0,0.24024703]
[1762218293886,3.0,106600.0,106590.0,0.18762644]
[1762218294094,3.18761726,106600.0,106590.0,0.21046644]
[1762218294305,3.19967564,106600.0,106590.0,0.01515]
[1762218294543,3.58037488,106600.0,106590.0,0.01515]
[1762218294750,3.21547564,106600.0,106580.0,0.23547965]
[1762218294957,0.18763486,106590.0,106580.0,0.23347965]
[1762218295163,0.18763486,106590.0,106580.0,0.03644457]
[1762218295372,0.5683341,106590.0,106580.0,0.05059457]
[1762218295602,0.5683341,106590.0,106580.0,0.23824703]
[1762218295817,3.0,106590.0,106580.0,0.05059457]
[1762218296025,3.18763486,106590.0,106580.0,0.23924703]
[1762218296231,3.5841341,106590.0,106580.0,0.01260457]
[1762218296442,3.5841341,106590.0,106580.0,0.00054457]
[1762218296652,3.68591418,106590.0,106580.0,0.00254457]
[1762218297285,3.68591418,106590.0,106580.0,0.00226722]
[1762218297493,3.6078941,106590.0,106580.0,0.00226722]
[1762218297714,3.6078941,106590.0,106580.0,0.00319553]
[1762218299036,3.9478941,106590.0,106580.0,0.00319553]
[1762218299928,3.34,106590.0,106580.0,0.22883799]
[1762218300149,3.9241341,106590.0,106580.0,0.00319553]
[1762218300352,3.9478941,106590.0,106580.0,0.00319553]
[1762218300793,3.9488941,106590.0,106580.0,0.00319553]
[1762218301015,3.97272867,106590.0,106580.0,0.00319553]
[1762218301463,0.18765246,106580.0,106570.0,0.0004]
[1762218301678,4.44780867,106580.0,106570.0,0.00044822]
[1762218301892,4.47274731,106580.0,106570.0,0.00044822]
[1762218302121,3.95008616,106560.0,106550.0,0.0004]
[1762218302330,3.96588616,106560.0,106550.0,0.00044822]
[1762218302540,3.99987645,106560.0,106550.0,0.00044822]
[1762218302763,4.43150081,106560.0,106550.0,0.00044822]
[1762218302978,4.43150081,106560.0,106530.0,0.0004]
[1762218302979,0.18772292,106540.0,106530.0,0.0004]
[1762218303190,3.70710143,106540.0,106530.0,0.00054419]
[1762218303445,4.11163524,106540.0,106530.0,0.00054419]
[1762218303654,3.82551206,106540.0,106530.0,0.00054419]
[1762218304081,3.80167749,106540.0,106530.0,0.00054419]
[1762218304512,4.5462113,106540.0,106530.0,0.00054419]
[1762218304759,4.17551205,106540.0,106530.0,0.00054419]
[1762218304969,4.15167748,106540.0,106530.0,0.00054419]
[1762218305851,4.15367748,106540.0,106530.0,0.00054419]
[1762218306400,3.76297825,106540.0,106530.0,0.00054419]
[1762218306616,4.04910143,106540.0,106530.0,0.00054419]
[1762218308775,3.93578216,106540.0,106530.0,0.18828473]